[Event "*** Titled Tuesday Blitz"]
[Site "Chess.com"]
[Date "2020.12.29"]
[Round "2"]
[White "Kretov_Evgenij"]
[Black "ChessLover0108"]
[Result "0-1"]
[WhiteElo "2512"]
[BlackElo "2766"]
[TimeControl "180+1"]
[EndTime "10:16:49 PST"]
[Termination "ChessLover0108 won by resignation"]

1. d4 {[%clk 0:03:00.9]} 1... d6 {[%clk 0:02:59.9]} 2. c4 {[%clk 0:03:01.2]}
2... e5 {[%clk 0:02:49.1]} 3. dxe5 {[%clk 0:03:00.6]} 3... dxe5 {[%clk
0:02:49.5]} 4. Qxd8+ {[%clk 0:03:00.6]} 4... Kxd8 {[%clk 0:02:50.4]} 5. h3
{[%clk 0:03:00.3]} 5... f6 {[%clk 0:02:50.4]} 6. g4 {[%clk 0:03:00.1]} 6... c6
{[%clk 0:02:50.9]} 7. Bg2 {[%clk 0:02:59.9]} 7... Kc7 {[%clk 0:02:51.5]} 8. e3
{[%clk 0:02:59.7]} 8... Be6 {[%clk 0:02:51.3]} 9. b3 {[%clk 0:02:59.1]} 9... Nd7
{[%clk 0:02:51.9]} 10. f4 {[%clk 0:02:57.6]} 10... a5 {[%clk 0:02:51.8]} 11. Nc3
{[%clk 0:02:55.9]} 11... exf4 {[%clk 0:02:52.1]} 12. exf4 {[%clk 0:02:55.3]}
12... Bb4 {[%clk 0:02:53]} 13. Bd2 {[%clk 0:02:54.8]} 13... Ne7 {[%clk
0:02:50.2]} 14. Nge2 {[%clk 0:02:51.1]} 14... Rhe8 {[%clk 0:02:49.2]} 15. O-O
{[%clk 0:02:45.4]} 15... Bf7 {[%clk 0:02:48.7]} 16. Rfd1 {[%clk 0:02:39.9]}
16... Rad8 {[%clk 0:02:47.7]} 17. Kf1 {[%clk 0:02:38.6]} 17... Ng6 {[%clk
0:02:46.9]} 18. f5 {[%clk 0:02:26.6]} 18... Nge5 {[%clk 0:02:45.4]} 19. Nf4
{[%clk 0:02:23.6]} 19... Nc5 {[%clk 0:02:40.3]} 20. Be1 {[%clk 0:02:05.5]} 20...
Nxc4 {[%clk 0:02:26.7]} 21. bxc4 {[%clk 0:01:18.7]} 21... Rxe1+ {[%clk 0:02:11]}
22. Rxe1 {[%clk 0:01:16.6]} 22... Bxc4+ {[%clk 0:02:06.6]} 23. Nce2 {[%clk
0:00:51.9]} 23... Bxe1 {[%clk 0:02:05.8]} 24. Rxe1 {[%clk 0:00:51.4]} 24... Bxa2
{[%clk 0:02:03.8]} 25. Nc3 {[%clk 0:00:48.9]} 25... Bb3 {[%clk 0:02:03.6]} 26.
Ne6+ {[%clk 0:00:47.9]} 26... Nxe6 {[%clk 0:01:59]} 27. fxe6 {[%clk 0:00:48]}
27... Re8 {[%clk 0:01:59.9]} 28. e7 {[%clk 0:00:46.2]} 28... a4 {[%clk
0:01:59.6]} 29. Be4 {[%clk 0:00:37.1]} 29... Rxe7 {[%clk 0:01:34.7]} 30. Bxh7
{[%clk 0:00:37]} 30... Rxe1+ {[%clk 0:01:35.6]} 31. Kxe1 {[%clk 0:00:37.3]}
31... a3 {[%clk 0:01:36.5]} 32. Bb1 {[%clk 0:00:37.1]} 32... b5 {[%clk
0:01:37.1]} 33. Kd2 {[%clk 0:00:36.9]} 33... b4 {[%clk 0:01:36.8]} 34. Na2
{[%clk 0:00:31.5]} 34... c5 {[%clk 0:01:37.3]} 35. Nc1 {[%clk 0:00:31.4]} 35...
Bd5 {[%clk 0:01:35.6]} 36. Kc2 {[%clk 0:00:12.5]} 36... Be4+ {[%clk 0:01:35.3]}
0-1

[Event "*** Titled Tuesday Blitz"]
[Site "Chess.com"]
[Date "2020.12.29"]
[Round "2"]
[White "Skat2704"]
[Black "akanga001"]
[Result "1-0"]
[WhiteElo "2366"]
[BlackElo "1944"]
[TimeControl "180+1"]
[EndTime "10:16:50 PST"]
[Termination "Skat2704 won by resignation"]

1. d4 {[%clk 0:03:00.9]} 1... Nf6 {[%clk 0:02:58.7]} 2. c4 {[%clk 0:03:00.4]}
2... b6 {[%clk 0:02:59.1]} 3. Nf3 {[%clk 0:02:57.3]} 3... Bb7 {[%clk 0:02:59.6]}
4. Nc3 {[%clk 0:02:57.6]} 4... d6 {[%clk 0:03:00.3]} 5. Bg5 {[%clk 0:02:56.1]}
5... Nbd7 {[%clk 0:02:59.9]} 6. e3 {[%clk 0:02:53.8]} 6... h6 {[%clk 0:03:00.3]}
7. Bh4 {[%clk 0:02:53.2]} 7... g5 {[%clk 0:03:00.5]} 8. Bg3 {[%clk 0:02:52.9]}
8... Bg7 {[%clk 0:03:01.1]} 9. Bd3 {[%clk 0:02:52.1]} 9... Nh5 {[%clk
0:02:59.8]} 10. O-O {[%clk 0:02:51.2]} 10... Nxg3 {[%clk 0:02:59.2]} 11. hxg3
{[%clk 0:02:50.5]} 11... O-O {[%clk 0:02:58.8]} 12. e4 {[%clk 0:02:46.7]} 12...
e5 {[%clk 0:02:51.4]} 13. Bc2 {[%clk 0:02:42.2]} 13... a5 {[%clk 0:02:50.1]} 14.
Qd2 {[%clk 0:02:36.3]} 14... Ba6 {[%clk 0:02:43.9]} 15. b3 {[%clk 0:02:32.7]}
15... Bb7 {[%clk 0:02:35]} 16. Rad1 {[%clk 0:02:31.5]} 16... Qe7 {[%clk
0:02:33.6]} 17. Nd5 {[%clk 0:02:25.7]} 17... Qd8 {[%clk 0:02:30.4]} 18. dxe5
{[%clk 0:02:22.6]} 18... dxe5 {[%clk 0:02:19.3]} 19. Ne3 {[%clk 0:02:15.4]}
19... Nc5 {[%clk 0:02:17.8]} 20. Qe2 {[%clk 0:02:12.5]} 20... Qe7 {[%clk
0:01:58.3]} 21. Nf5 {[%clk 0:02:08.9]} 21... Qf6 {[%clk 0:01:47.2]} 22. Nh2
{[%clk 0:02:07.8]} 22... Rfe8 {[%clk 0:01:18.3]} 23. Ng4 {[%clk 0:02:06.5]}
23... Qg6 {[%clk 0:01:18.2]} 24. f3 {[%clk 0:01:57.9]} 24... h5 {[%clk
0:01:17.8]} 25. Nge3 {[%clk 0:01:57.1]} 25... Ne6 {[%clk 0:01:01]} 26. Nd5
{[%clk 0:01:53.5]} 26... Bxd5 {[%clk 0:00:57.2]} 27. exd5 {[%clk 0:01:48.2]}
27... Nd4 {[%clk 0:00:57.6]} 28. Nxd4 {[%clk 0:01:46.3]} 28... exd4 {[%clk
0:00:56.8]} 29. Qxe8+ {[%clk 0:01:43.2]} 29... Rxe8 {[%clk 0:00:53.8]} 30. Bxg6
{[%clk 0:01:43]} 30... fxg6 {[%clk 0:00:54.7]} 31. Rfe1 {[%clk 0:01:41.8]} 31...
Rd8 {[%clk 0:00:43.7]} 32. Re6 {[%clk 0:01:40.8]} 32... Kh7 {[%clk 0:00:42.3]}
33. Re7 {[%clk 0:01:39.1]} 33... Rc8 {[%clk 0:00:23.2]} 34. Rxd4 {[%clk
0:01:35.2]} 34... Kh6 {[%clk 0:00:21]} 35. Rde4 {[%clk 0:01:34.3]} 1-0

[Event "*** Titled Tuesday Blitz"]
[Site "Chess.com"]
[Date "2020.12.29"]
[Round "2"]
[White "03revilo"]
[Black "Alomaterapia"]
[Result "0-1"]
[WhiteElo "2302"]
[BlackElo "2481"]
[TimeControl "180+1"]
[EndTime "10:16:55 PST"]
[Termination "Alomaterapia won by resignation"]

1. c4 {[%clk 0:03:00.9]} 1... c6 {[%clk 0:02:59.5]} 2. Nf3 {[%clk 0:03:00.4]}
2... d5 {[%clk 0:02:59.9]} 3. e3 {[%clk 0:03:00.2]} 3... Nf6 {[%clk 0:03:00]} 4.
Nc3 {[%clk 0:02:59.9]} 4... Nbd7 {[%clk 0:03:00]} 5. Qc2 {[%clk 0:02:53.6]} 5...
e5 {[%clk 0:02:59.4]} 6. cxd5 {[%clk 0:02:50.7]} 6... Nxd5 {[%clk 0:03:00.3]} 7.
b3 {[%clk 0:02:36.8]} 7... Bd6 {[%clk 0:02:56]} 8. Bb2 {[%clk 0:02:34.6]} 8...
O-O {[%clk 0:02:54.6]} 9. Ne4 {[%clk 0:02:16.4]} 9... Be7 {[%clk 0:02:25.8]} 10.
Nxe5 {[%clk 0:02:00.7]} 10... Nxe5 {[%clk 0:02:26.4]} 11. Bxe5 {[%clk
0:02:01.1]} 11... Bf5 {[%clk 0:02:26.6]} 12. a3 {[%clk 0:01:04.3]} 12... Re8
{[%clk 0:02:23]} 13. Bb2 {[%clk 0:00:54.5]} 13... Bxa3 {[%clk 0:02:11.5]} 14.
Bxa3 {[%clk 0:00:53.6]} 14... Bxe4 {[%clk 0:02:10.4]} 15. d3 {[%clk 0:00:53.6]}
15... Bg6 {[%clk 0:02:09.1]} 16. Be2 {[%clk 0:00:52.6]} 16... Nf4 {[%clk
0:02:03.3]} 17. O-O-O {[%clk 0:00:21.9]} 17... Qa5 {[%clk 0:01:48.6]} 18. Bb2
{[%clk 0:00:20.2]} 18... Nd5 {[%clk 0:01:35.3]} 19. Kb1 {[%clk 0:00:15.2]} 19...
Rad8 {[%clk 0:01:31.3]} 20. e4 {[%clk 0:00:13.6]} 20... Nb4 {[%clk 0:01:28.8]}
21. Qc3 {[%clk 0:00:13.4]} 21... f6 {[%clk 0:01:28.2]} 22. f3 {[%clk 0:00:08.8]}
22... Bf7 {[%clk 0:01:24]} 23. Rd2 {[%clk 0:00:03.4]} 23... c5 {[%clk
0:01:18.7]} 24. d4 {[%clk 0:00:02.3]} 24... Qa2+ {[%clk 0:01:16]} 25. Kc1 {[%clk
0:00:02.3]} 25... Qa5 {[%clk 0:01:05.7]} 26. d5 {[%clk 0:00:01.6]} 26... Na2+
{[%clk 0:01:05.4]} 0-1

[Event "*** Titled Tuesday Blitz"]
[Site "Chess.com"]
[Date "2020.12.29"]
[Round "2"]
[White "GM_LOADING"]
[Black "JakubPulpan"]
[Result "1-0"]
[WhiteElo "2504"]
[BlackElo "2702"]
[TimeControl "180+1"]
[EndTime "10:16:56 PST"]
[Termination "GM_LOADING won by resignation"]

1. d4 {[%clk 0:03:00.9]} 1... Nf6 {[%clk 0:02:55.2]} 2. Nf3 {[%clk 0:03:00.9]}
2... Nd5 {[%clk 0:02:53.2]} 3. e4 {[%clk 0:02:58.4]} 3... Nb6 {[%clk 0:02:53.1]}
4. Nc3 {[%clk 0:02:57.4]} 4... d6 {[%clk 0:02:53.4]} 5. a4 {[%clk 0:02:54.4]}
5... a5 {[%clk 0:02:52.8]} 6. Bd3 {[%clk 0:02:52.6]} 6... Nc6 {[%clk 0:02:49.1]}
7. Bb5 {[%clk 0:02:45.5]} 7... Bd7 {[%clk 0:02:46.8]} 8. Be3 {[%clk 0:02:43.4]}
8... Nb4 {[%clk 0:02:40.1]} 9. Be2 {[%clk 0:02:40.8]} 9... Bg4 {[%clk
0:02:39.3]} 10. h3 {[%clk 0:02:33.1]} 10... Bxf3 {[%clk 0:02:33.6]} 11. Bxf3
{[%clk 0:02:34]} 11... Nc4 {[%clk 0:02:31.8]} 12. Bg5 {[%clk 0:02:24]} 12...
Nxb2 {[%clk 0:02:29.3]} 13. Qe2 {[%clk 0:02:23.5]} 13... Qd7 {[%clk 0:02:29.2]}
14. Bc1 {[%clk 0:02:19]} 14... Nxa4 {[%clk 0:02:18.6]} 15. Rxa4 {[%clk 0:02:15]}
15... g6 {[%clk 0:02:19.5]} 16. Ba3 {[%clk 0:02:08.8]} 16... Na2 {[%clk
0:01:56.1]} 17. Rc4 {[%clk 0:01:36.5]} 17... b5 {[%clk 0:01:48.4]} 18. e5 {[%clk
0:01:18.2]} 18... bxc4 {[%clk 0:01:46.5]} 19. Bxa8 {[%clk 0:01:10.8]} 19... Nxc3
{[%clk 0:01:44.1]} 20. Qxc4 {[%clk 0:01:07.8]} 20... c5 {[%clk 0:01:30]} 21.
Qxc3 {[%clk 0:01:03.1]} 21... Bg7 {[%clk 0:01:29.3]} 22. O-O {[%clk 0:00:43.6]}
22... O-O {[%clk 0:01:27.9]} 23. Qxa5 {[%clk 0:00:42.9]} 23... cxd4 {[%clk
0:01:14.4]} 24. exd6 {[%clk 0:00:42.3]} 24... exd6 {[%clk 0:01:11.8]} 25. Be4
{[%clk 0:00:41.5]} 25... Re8 {[%clk 0:01:07.1]} 26. Bd3 {[%clk 0:00:40.1]} 26...
Rc8 {[%clk 0:01:00.9]} 27. Re1 {[%clk 0:00:35]} 27... h5 {[%clk 0:01:00.3]} 28.
Qd5 {[%clk 0:00:33.2]} 28... Rd8 {[%clk 0:00:56.7]} 29. Bxg6 {[%clk 0:00:31.9]}
29... Ra8 {[%clk 0:00:51.5]} 30. Qxa8+ {[%clk 0:00:30.5]} 30... Qd8 {[%clk
0:00:50.3]} 1-0

[Event "*** Titled Tuesday Blitz"]
[Site "Chess.com"]
[Date "2020.12.29"]
[Round "2"]
[White "IMDT02"]
[Black "tigra"]
[Result "0-1"]
[WhiteElo "2535"]
[BlackElo "2821"]
[TimeControl "180+1"]
[EndTime "10:16:58 PST"]
[Termination "tigra won on time"]

1. e4 {[%clk 0:03:00.9]} 1... c5 {[%clk 0:02:59.8]} 2. Nf3 {[%clk 0:02:59.9]}
2... d6 {[%clk 0:03:00.1]} 3. Bb5+ {[%clk 0:02:53.6]} 3... Nd7 {[%clk
0:02:59.8]} 4. Ba4 {[%clk 0:02:52.4]} 4... a6 {[%clk 0:02:59.8]} 5. c4 {[%clk
0:02:51]} 5... e5 {[%clk 0:02:59.2]} 6. Nc3 {[%clk 0:02:47.5]} 6... Ne7 {[%clk
0:02:58.6]} 7. a3 {[%clk 0:02:47.6]} 7... Nc6 {[%clk 0:02:57.8]} 8. O-O {[%clk
0:02:37.4]} 8... Be7 {[%clk 0:02:57.6]} 9. Rb1 {[%clk 0:02:29.6]} 9... O-O
{[%clk 0:02:57]} 10. b4 {[%clk 0:02:29.4]} 10... Nd4 {[%clk 0:02:51.8]} 11. Nd5
{[%clk 0:02:25.9]} 11... b5 {[%clk 0:02:48.9]} 12. Nxd4 {[%clk 0:02:22.4]} 12...
exd4 {[%clk 0:02:46.8]} 13. cxb5 {[%clk 0:02:22.7]} 13... Nb6 {[%clk 0:02:43.3]}
14. bxc5 {[%clk 0:02:06.5]} 14... Nxd5 {[%clk 0:02:23.5]} 15. exd5 {[%clk
0:02:00.8]} 15... dxc5 {[%clk 0:02:23.6]} 16. b6 {[%clk 0:01:00.7]} 16... Rb8
{[%clk 0:02:22.1]} 17. Bc6 {[%clk 0:00:49.8]} 17... Rxb6 {[%clk 0:02:14.9]} 18.
Rxb6 {[%clk 0:00:48.6]} 18... Qxb6 {[%clk 0:02:15.8]} 19. d3 {[%clk 0:00:49.1]}
19... Bd6 {[%clk 0:02:13.9]} 20. Re1 {[%clk 0:00:42.8]} 20... Bf5 {[%clk
0:02:08.5]} 21. Qf3 {[%clk 0:00:41.4]} 21... Bg6 {[%clk 0:02:06.5]} 22. h4
{[%clk 0:00:40.4]} 22... Qb3 {[%clk 0:02:00]} 23. h5 {[%clk 0:00:22.6]} 23...
Bxd3 {[%clk 0:01:54.1]} 24. h6 {[%clk 0:00:22.9]} 24... Qc3 {[%clk 0:01:42]} 25.
Rd1 {[%clk 0:00:17.2]} 25... Bc2 {[%clk 0:01:37.8]} 26. Qg4 {[%clk 0:00:03.6]}
26... g6 {[%clk 0:01:37.6]} 27. Rd2 {[%clk 0:00:03.9]} 27... Bf5 {[%clk
0:01:36.4]} 28. Qd1 {[%clk 0:00:04]} 28... Bf4 {[%clk 0:01:33.1]} 29. d6 {[%clk
0:00:02.3]} 29... Bxd6 {[%clk 0:01:18]} 30. Bd5 {[%clk 0:00:02]} 30... Bf4
{[%clk 0:01:15]} 0-1

[Event "*** Titled Tuesday Blitz"]
[Site "Chess.com"]
[Date "2020.12.29"]
[Round "2"]
[White "CarrotsandPizza"]
[Black "horripile"]
[Result "0-1"]
[WhiteElo "2397"]
[BlackElo "2681"]
[TimeControl "180+1"]
[EndTime "10:16:59 PST"]
[Termination "horripile won on time"]

1. e4 {[%clk 0:03:00.9]} 1... d6 {[%clk 0:02:57.3]} 2. d4 {[%clk 0:03:00.5]}
2... Nf6 {[%clk 0:02:56.5]} 3. Nc3 {[%clk 0:03:01]} 3... e5 {[%clk 0:02:56.9]}
4. Nf3 {[%clk 0:03:01.2]} 4... Nbd7 {[%clk 0:02:56.4]} 5. Bc4 {[%clk 0:03:01.7]}
5... exd4 {[%clk 0:02:56.2]} 6. Nxd4 {[%clk 0:03:00.2]} 6... Nb6 {[%clk
0:02:53.8]} 7. Be2 {[%clk 0:02:50.7]} 7... Be7 {[%clk 0:02:53.7]} 8. O-O {[%clk
0:02:49.7]} 8... O-O {[%clk 0:02:54.2]} 9. f4 {[%clk 0:02:48.8]} 9... c6 {[%clk
0:02:53.4]} 10. Be3 {[%clk 0:02:43]} 10... d5 {[%clk 0:02:46.2]} 11. e5 {[%clk
0:02:43.1]} 11... Ne8 {[%clk 0:02:46.2]} 12. f5 {[%clk 0:02:39.3]} 12... c5
{[%clk 0:02:46.5]} 13. f6 {[%clk 0:02:36.4]} 13... Nxf6 {[%clk 0:02:38.7]} 14.
exf6 {[%clk 0:02:29.4]} 14... Bxf6 {[%clk 0:02:39.6]} 15. Bf3 {[%clk 0:01:38.3]}
15... Nc4 {[%clk 0:02:09.6]} 16. Nxd5 {[%clk 0:01:38.3]} 16... Nxe3 {[%clk
0:01:37.2]} 17. Nxe3 {[%clk 0:01:03.5]} 17... Bxd4 {[%clk 0:01:28.7]} 18. Re1
{[%clk 0:01:03.7]} 18... Re8 {[%clk 0:01:25.6]} 19. Qd3 {[%clk 0:00:55.5]} 19...
Qg5 {[%clk 0:01:22.5]} 20. Kf2 {[%clk 0:00:52.4]} 20... Bf5 {[%clk 0:01:18.2]}
21. Qd2 {[%clk 0:00:19.1]} 21... Rad8 {[%clk 0:01:10]} 22. Qc1 {[%clk 0:00:14]}
22... Qh4+ {[%clk 0:00:58.3]} 23. Kg1 {[%clk 0:00:08.2]} 23... Qxe1+ {[%clk
0:00:58.7]} 24. Qxe1 {[%clk 0:00:07.4]} 24... Rxe3 {[%clk 0:00:59.3]} 0-1

[Event "*** Titled Tuesday Blitz"]
[Site "Chess.com"]
[Date "2020.12.29"]
[Round "2"]
[White "tjychess"]
[Black "Nuvas"]
[Result "1-0"]
[WhiteElo "2732"]
[BlackElo "2498"]
[TimeControl "180+1"]
[EndTime "10:17:01 PST"]
[Termination "tjychess won by resignation"]

1. d4 {[%clk 0:03:00.9]} 1... Nf6 {[%clk 0:02:59.3]} 2. c4 {[%clk 0:03:01.1]}
2... g6 {[%clk 0:02:59.2]} 3. Nc3 {[%clk 0:03:01.2]} 3... d5 {[%clk 0:02:59.8]}
4. Nf3 {[%clk 0:03:01]} 4... Bg7 {[%clk 0:02:59.6]} 5. Qb3 {[%clk 0:03:01.2]}
5... dxc4 {[%clk 0:02:59.3]} 6. Qxc4 {[%clk 0:03:02.1]} 6... Be6 {[%clk
0:02:59.7]} 7. Qb5+ {[%clk 0:03:00.7]} 7... Bd7 {[%clk 0:03:00]} 8. Qxb7 {[%clk
0:02:58.7]} 8... Nc6 {[%clk 0:02:49.2]} 9. Qb3 {[%clk 0:02:58.7]} 9... O-O
{[%clk 0:02:45.6]} 10. e3 {[%clk 0:02:54.9]} 10... Rb8 {[%clk 0:02:41.9]} 11.
Qd1 {[%clk 0:02:54.5]} 11... Na5 {[%clk 0:02:16.5]} 12. Be2 {[%clk 0:02:51.6]}
12... c5 {[%clk 0:02:09]} 13. O-O {[%clk 0:02:42.2]} 13... Qc7 {[%clk
0:02:00.4]} 14. d5 {[%clk 0:02:26.8]} 14... Bf5 {[%clk 0:01:36.3]} 15. Bd3
{[%clk 0:02:11.1]} 15... Rfd8 {[%clk 0:01:30.5]} 16. e4 {[%clk 0:02:04.9]} 16...
Bg4 {[%clk 0:01:13]} 17. h3 {[%clk 0:02:05]} 17... Bxf3 {[%clk 0:01:13.4]} 18.
Qxf3 {[%clk 0:02:05.9]} 18... Nd7 {[%clk 0:01:14.1]} 19. Be2 {[%clk 0:01:54.7]}
19... Ne5 {[%clk 0:00:57.1]} 20. Qg3 {[%clk 0:01:54.6]} 20... Rdc8 {[%clk
0:00:23.1]} 21. Rb1 {[%clk 0:01:50.6]} 21... Nac4 {[%clk 0:00:18.8]} 22. f4
{[%clk 0:00:55.4]} 22... Qb6 {[%clk 0:00:17.9]} 23. fxe5 {[%clk 0:00:54.1]}
23... Bxe5 {[%clk 0:00:18.7]} 24. Bf4 {[%clk 0:00:46.6]} 1-0

[Event "*** Titled Tuesday Blitz"]
[Site "Chess.com"]
[Date "2020.12.29"]
[Round "2"]
[White "szachuspl"]
[Black "Blitzstream"]
[Result "0-1"]
[WhiteElo "2485"]
[BlackElo "2715"]
[TimeControl "180+1"]
[EndTime "10:17:02 PST"]
[Termination "Blitzstream won by checkmate"]

1. d4 {[%clk 0:03:00.9]} 1... d5 {[%clk 0:03:00]} 2. c4 {[%clk 0:03:00.9]} 2...
c6 {[%clk 0:03:00.4]} 3. Nf3 {[%clk 0:03:00.6]} 3... Nf6 {[%clk 0:03:00.7]} 4.
e3 {[%clk 0:03:00.9]} 4... Bf5 {[%clk 0:03:01]} 5. Nbd2 {[%clk 0:03:00]} 5... e6
{[%clk 0:02:59.9]} 6. Be2 {[%clk 0:03:00.4]} 6... Bd6 {[%clk 0:02:59.2]} 7. b3
{[%clk 0:03:00.6]} 7... O-O {[%clk 0:02:59.1]} 8. Bb2 {[%clk 0:03:00.9]} 8...
Nbd7 {[%clk 0:02:59.7]} 9. O-O {[%clk 0:03:00.9]} 9... Ne4 {[%clk 0:03:00.1]}
10. Ne5 {[%clk 0:02:57]} 10... Qc7 {[%clk 0:02:53.6]} 11. cxd5 {[%clk
0:02:48.4]} 11... exd5 {[%clk 0:02:48.5]} 12. Nxe4 {[%clk 0:02:22.9]} 12... Bxe4
{[%clk 0:02:47.1]} 13. f3 {[%clk 0:02:17]} 13... Bg6 {[%clk 0:02:44.4]} 14. f4
{[%clk 0:02:09.5]} 14... Be4 {[%clk 0:02:40.5]} 15. Rc1 {[%clk 0:02:01.9]} 15...
Nf6 {[%clk 0:02:31.2]} 16. Bc3 {[%clk 0:01:57.1]} 16... Qe7 {[%clk 0:02:27.6]}
17. a4 {[%clk 0:01:50.4]} 17... Nd7 {[%clk 0:02:05.6]} 18. Bg4 {[%clk
0:01:49.3]} 18... Nf6 {[%clk 0:02:01.8]} 19. Bh3 {[%clk 0:01:46.3]} 19... Rad8
{[%clk 0:01:52.8]} 20. Qd2 {[%clk 0:01:43.6]} 20... Ne8 {[%clk 0:01:50.3]} 21.
Rce1 {[%clk 0:01:40.8]} 21... f6 {[%clk 0:01:50.2]} 22. Nd3 {[%clk 0:01:39.8]}
22... Nc7 {[%clk 0:01:43.8]} 23. Nc5 {[%clk 0:01:38.1]} 23... Bxc5 {[%clk
0:01:36.2]} 24. dxc5 {[%clk 0:01:38]} 24... Qxc5 {[%clk 0:01:36]} 25. Bb4 {[%clk
0:01:36.9]} 25... Qc2 {[%clk 0:01:26.2]} 26. Qxc2 {[%clk 0:01:27.3]} 26... Bxc2
{[%clk 0:01:27.1]} 27. Bxf8 {[%clk 0:01:25.6]} 27... Kxf8 {[%clk 0:01:28]} 28.
a5 {[%clk 0:01:19.8]} 28... Bxb3 {[%clk 0:00:58]} 29. Rb1 {[%clk 0:01:19]} 29...
Bc4 {[%clk 0:00:58.3]} 30. Rxb7 {[%clk 0:01:03.2]} 30... Bxf1 {[%clk 0:00:57.9]}
31. Rxc7 {[%clk 0:00:56.6]} 31... Bb5 {[%clk 0:00:54.6]} 32. Rxa7 {[%clk
0:00:46]} 32... d4 {[%clk 0:00:55]} 33. exd4 {[%clk 0:00:35.5]} 33... Rxd4
{[%clk 0:00:55.9]} 34. Be6 {[%clk 0:00:35.3]} 34... Rxf4 {[%clk 0:00:52.5]} 35.
Rf7+ {[%clk 0:00:34.4]} 35... Ke8 {[%clk 0:00:52.7]} 36. Rxg7 {[%clk 0:00:34.7]}
36... Rf1# {[%clk 0:00:52.4]} 0-1

[Event "*** Titled Tuesday Blitz"]
[Site "Chess.com"]
[Date "2020.12.29"]
[Round "2"]
[White "sergiochess83"]
[Black "Orest_Vovk"]
[Result "1-0"]
[WhiteElo "2796"]
[BlackElo "2524"]
[TimeControl "180+1"]
[EndTime "10:17:05 PST"]
[Termination "sergiochess83 won by resignation"]

1. e4 {[%clk 0:03:00.9]} 1... g5 {[%clk 0:02:56]} 2. d4 {[%clk 0:02:58.1]} 2...
g4 {[%clk 0:02:56.2]} 3. Qxg4 {[%clk 0:02:43]} 3... d5 {[%clk 0:02:55.6]} 4. Qh4
{[%clk 0:02:41.6]} 4... dxe4 {[%clk 0:02:54.8]} 5. Qxe4 {[%clk 0:02:41.1]} 5...
Nf6 {[%clk 0:02:54.7]} 6. Qh4 {[%clk 0:02:40.6]} 6... Nc6 {[%clk 0:02:54.6]} 7.
Nf3 {[%clk 0:02:40.1]} 7... Rg8 {[%clk 0:02:54.8]} 8. Bg5 {[%clk 0:02:35.2]}
8... Nxd4 {[%clk 0:02:37]} 9. Nxd4 {[%clk 0:02:30.7]} 9... Rxg5 {[%clk
0:02:36.7]} 10. Qxg5 {[%clk 0:02:24.6]} 10... Qxd4 {[%clk 0:02:36.5]} 11. Nc3
{[%clk 0:02:23.6]} 11... Ne4 {[%clk 0:02:01.4]} 12. Qf4 {[%clk 0:01:37.8]} 12...
Bh6 {[%clk 0:02:00.1]} 13. Bb5+ {[%clk 0:01:08.3]} 13... c6 {[%clk 0:01:51.4]}
14. Qxe4 {[%clk 0:00:59.3]} 14... Bd2+ {[%clk 0:01:32.9]} 15. Kf1 {[%clk
0:00:37.1]} 15... Bxc3 {[%clk 0:01:32.4]} 16. Bxc6+ {[%clk 0:00:35]} 16... Kf8
{[%clk 0:01:16.1]} 17. bxc3 {[%clk 0:00:14.9]} 17... Qxc3 {[%clk 0:01:07.2]} 18.
Re1 {[%clk 0:00:14.9]} 18... bxc6 {[%clk 0:00:42]} 19. Qxe7+ {[%clk 0:00:14.4]}
19... Kg8 {[%clk 0:00:38.7]} 20. Qg5+ {[%clk 0:00:14.1]} 20... Kf8 {[%clk
0:00:34.2]} 21. Qh6+ {[%clk 0:00:13.7]} 1-0

[Event "*** Titled Tuesday Blitz"]
[Site "Chess.com"]
[Date "2020.12.29"]
[Round "2"]
[White "novocane"]
[Black "BAS8892"]
[Result "0-1"]
[WhiteElo "2296"]
[BlackElo "2636"]
[TimeControl "180+1"]
[EndTime "10:17:09 PST"]
[Termination "BAS8892 won by checkmate"]

1. d4 {[%clk 0:02:59.1]} 1... d5 {[%clk 0:02:59.4]} 2. c4 {[%clk 0:02:59.2]}
2... c6 {[%clk 0:02:59.5]} 3. cxd5 {[%clk 0:02:59.1]} 3... cxd5 {[%clk
0:03:00.4]} 4. Bf4 {[%clk 0:02:59.5]} 4... Nc6 {[%clk 0:03:00.7]} 5. e3 {[%clk
0:02:59.9]} 5... Nf6 {[%clk 0:03:00.8]} 6. Nc3 {[%clk 0:02:55]} 6... Bg4 {[%clk
0:03:00]} 7. Qb3 {[%clk 0:02:42.8]} 7... Na5 {[%clk 0:02:59]} 8. Qa4+ {[%clk
0:02:42.7]} 8... Bd7 {[%clk 0:02:58]} 9. Qc2 {[%clk 0:02:42.6]} 9... Rc8 {[%clk
0:02:55.7]} 10. Bd3 {[%clk 0:02:38.7]} 10... e6 {[%clk 0:02:55.3]} 11. h3 {[%clk
0:02:38.9]} 11... a6 {[%clk 0:02:54.1]} 12. Nf3 {[%clk 0:02:38.5]} 12... b5
{[%clk 0:02:53.5]} 13. a3 {[%clk 0:02:37.2]} 13... Be7 {[%clk 0:02:51.9]} 14.
O-O {[%clk 0:02:36.6]} 14... O-O {[%clk 0:02:52.1]} 15. Ne5 {[%clk 0:02:36.8]}
15... Be8 {[%clk 0:02:49.4]} 16. Kh1 {[%clk 0:02:09.4]} 16... h6 {[%clk
0:02:48.5]} 17. g4 {[%clk 0:02:06.8]} 17... Nc4 {[%clk 0:02:45.4]} 18. Rg1
{[%clk 0:01:58.6]} 18... Nd7 {[%clk 0:02:38.8]} 19. Nf3 {[%clk 0:01:26.9]} 19...
f6 {[%clk 0:02:04.7]} 20. Bg3 {[%clk 0:00:44.7]} 20... Bf7 {[%clk 0:02:00.4]}
21. h4 {[%clk 0:00:34]} 21... e5 {[%clk 0:01:31]} 22. Bxc4 {[%clk 0:00:30.4]}
22... Rxc4 {[%clk 0:01:25.4]} 23. dxe5 {[%clk 0:00:30.5]} 23... fxe5 {[%clk
0:01:25.4]} 24. Nxe5 {[%clk 0:00:28.9]} 24... Nxe5 {[%clk 0:01:25.3]} 25. Bxe5
{[%clk 0:00:29]} 25... Bxh4 {[%clk 0:01:24.4]} 26. f4 {[%clk 0:00:28.6]} 26...
Re8 {[%clk 0:01:19.9]} 27. Bd4 {[%clk 0:00:28.2]} 27... Bf6 {[%clk 0:01:13.8]}
28. g5 {[%clk 0:00:24.7]} 28... hxg5 {[%clk 0:01:10.9]} 29. Bxf6 {[%clk
0:00:21.2]} 29... Qxf6 {[%clk 0:01:10]} 30. Rxg5 {[%clk 0:00:21.3]} 30... Rxe3
{[%clk 0:01:08.2]} 31. Rag1 {[%clk 0:00:20.8]} 31... Qh6+ {[%clk 0:01:05]} 32.
Kg2 {[%clk 0:00:19.9]} 32... Qh3+ {[%clk 0:01:03.6]} 33. Kf2 {[%clk 0:00:17]}
33... Qf3# {[%clk 0:01:03.4]} 0-1